[Event "Titled Tuesday Blitz December 27 Early 2022"]
[White "Firouzja, Alireza"]
[Black "Shipov, Sergei"]
[WhiteFideId "12573981"]
[BlackFideId "4113624"]
[WhiteElo "2785"]
[BlackElo "2541"]
[Result "1-0"]
[Round "03"]
[TimeControl "180+2"]
[Date "2022.12.27"]
[WhiteClock "0:00:10"]
[BlackClock "0:00:03"]

1. e4 {[%clk 0:03:00]}  e6 {[%clk 0:03:00]} 2. d4 {[%clk 0:03:00]}  d5 {[%clk 0:03:00]} 3. Nc3 {[%clk 0:02:59]}  Bb4 {[%clk 0:03:01]} 4. e5 {[%clk 0:02:58]}  c5 {[%clk 0:03:00]} 5. a3 {[%clk 0:02:59]}  Ba5 {[%clk 0:03:00]} 6. Bd2 {[%clk 0:02:58]}  Nc6 {[%clk 0:02:59]} 7. dxc5 {[%clk 0:02:50]}  Nxe5 {[%clk 0:02:51]} 8. Nb5 {[%clk 0:02:50]}  Bc7 {[%clk 0:02:51]} 9. Qe2 {[%clk 0:02:31]}  Nf6 {[%clk 0:02:46]} 10. O-O-O {[%clk 0:02:30]}  O-O {[%clk 0:02:39]} 11. Kb1 {[%clk 0:02:18]}  Nc6 {[%clk 0:02:23]} 12. g4 {[%clk 0:02:12]}  Ne4 {[%clk 0:02:19]} 13. Be3 {[%clk 0:02:03]}  b6 {[%clk 0:02:02]} 14. Bg2 {[%clk 0:01:20]}  Nxc5 {[%clk 0:01:58]} 15. c4 {[%clk 0:01:20]}  Ba6 {[%clk 0:01:59]} 16. cxd5 {[%clk 0:01:17]}  exd5 {[%clk 0:01:57]} 17. Bxd5 {[%clk 0:01:16]}  Qf6 {[%clk 0:01:31]} 18. Nf3 {[%clk 0:00:57]}  Rad8 {[%clk 0:01:29]} 19. Bc4 {[%clk 0:00:50]}  Na5 {[%clk 0:01:24]} 20. Rxd8 {[%clk 0:00:43]}  Rxd8 {[%clk 0:01:22]} 21. Bg5 {[%clk 0:00:39]}  Qg6+ {[%clk 0:01:17]} 22. Ka1 {[%clk 0:00:39]}  Rc8 {[%clk 0:00:47]} 23. Bd5 {[%clk 0:00:27]}  h6 {[%clk 0:00:40]} 24. h4 {[%clk 0:00:23]}  Qd3 {[%clk 0:00:36]} 25. Qxd3 {[%clk 0:00:17]}  Nxd3 {[%clk 0:00:37]} 26. Nxc7 {[%clk 0:00:17]}  Rxc7 {[%clk 0:00:35]} 27. Be3 {[%clk 0:00:17]}  Nc4 {[%clk 0:00:19]} 28. Bd4 {[%clk 0:00:16]}  Rd7 {[%clk 0:00:17]} 29. Bc6 {[%clk 0:00:16]}  Rd6 {[%clk 0:00:16]} 30. Be4 {[%clk 0:00:15]}  Nc5 {[%clk 0:00:11]} 31. Bxc5 {[%clk 0:00:14]}  bxc5 {[%clk 0:00:11]} 32. Rc1 {[%clk 0:00:15]}  g6 {[%clk 0:00:07]} 33. Kb1 {[%clk 0:00:14]}  Kg7 {[%clk 0:00:06]} 34. Ka2 {[%clk 0:00:10]}  Rb6 {[%clk 0:00:03]} 35. b3 {[%clk 0:00:09]}  Nd6 {[%clk 0:00:03]} 36. Bd5 {[%clk 0:00:10]} 1-0


[Site "https://www.chess.com"]

[Event "Titled Tuesday Blitz December 27 Early 2022"]
[White "Flynn, Jacob"]
[Black "Sourath Biswas"]
[WhiteFideId "2509393"]
[BlackFideId "35091484"]
[WhiteElo "2102"]
[BlackElo "2281"]
[Result "0-1"]
[Round "03"]
[TimeControl "180+2"]
[Date "2022.12.27"]
[WhiteClock "0:00:04"]
[BlackClock "0:00:09"]

1. d4 {[%clk 0:02:45]}  Nf6 {[%clk 0:02:58]} 2. c4 {[%clk 0:02:44]}  g6 {[%clk 0:02:57]} 3. Nc3 {[%clk 0:02:41]}  Bg7 {[%clk 0:02:56]} 4. e4 {[%clk 0:02:40]}  O-O {[%clk 0:02:55]} 5. Nf3 {[%clk 0:02:40]}  d6 {[%clk 0:02:56]} 6. Be2 {[%clk 0:02:41]}  Nbd7 {[%clk 0:02:56]} 7. Be3 {[%clk 0:02:40]}  e5 {[%clk 0:02:47]} 8. d5 {[%clk 0:02:40]}  Qe7 {[%clk 0:02:23]} 9. Nd2 {[%clk 0:02:37]}  Kh8 {[%clk 0:02:15]} 10. g4 {[%clk 0:02:34]}  Ng8 {[%clk 0:02:15]} 11. h4 {[%clk 0:02:30]}  f5 {[%clk 0:02:15]} 12. f3 {[%clk 0:02:22]}  Ndf6 {[%clk 0:01:54]} 13. g5 {[%clk 0:02:06]}  Nh5 {[%clk 0:01:53]} 14. Qc2 {[%clk 0:01:55]}  Nf4 {[%clk 0:01:50]} 15. O-O-O {[%clk 0:01:41]}  c6 {[%clk 0:01:51]} 16. Kb1 {[%clk 0:01:32]}  cxd5 {[%clk 0:01:50]} 17. Bxf4 {[%clk 0:01:27]}  exf4 {[%clk 0:01:45]} 18. Nxd5 {[%clk 0:01:26]}  Qe5 {[%clk 0:01:46]} 19. Nb3 {[%clk 0:01:19]}  fxe4 {[%clk 0:01:42]} 20. fxe4 {[%clk 0:01:04]}  f3 {[%clk 0:01:41]} 21. Bd3 {[%clk 0:01:04]}  Bg4 {[%clk 0:01:39]} 22. Rdg1 {[%clk 0:01:01]}  Bh5 {[%clk 0:01:37]} 23. Rf1 {[%clk 0:00:59]}  Rac8 {[%clk 0:01:35]} 24. Rf2 {[%clk 0:00:59]}  b5 {[%clk 0:01:34]} 25. c5 {[%clk 0:00:42]}  dxc5 {[%clk 0:01:29]} 26. Bxb5 {[%clk 0:00:42]}  c4 {[%clk 0:01:22]} 27. Na5 {[%clk 0:00:38]}  Rc5 {[%clk 0:01:01]} 28. Nxc4 {[%clk 0:00:28]}  Qb8 {[%clk 0:01:01]} 29. Ba4 {[%clk 0:00:21]}  Rfc8 {[%clk 0:00:55]} 30. Bb3 {[%clk 0:00:21]}  a5 {[%clk 0:00:49]} 31. Nde3 {[%clk 0:00:15]}  Ne7 {[%clk 0:00:44]} 32. Qd3 {[%clk 0:00:15]}  Rd8 {[%clk 0:00:37]} 33. Qc2 {[%clk 0:00:12]}  Nc6 {[%clk 0:00:36]} 34. Nd5 {[%clk 0:00:12]}  Nd4 {[%clk 0:00:33]} 35. Qd3 {[%clk 0:00:11]}  Rdc8 {[%clk 0:00:18]} 36. Re1 {[%clk 0:00:11]}  a4 {[%clk 0:00:18]} 37. Bxa4 {[%clk 0:00:05]}  Rxc4 {[%clk 0:00:18]} 38. Bd7 {[%clk 0:00:05]}  R8c5 {[%clk 0:00:14]} 39. e5 {[%clk 0:00:06]}  Rxd5 {[%clk 0:00:09]} 40. Qxc4 {[%clk 0:00:06]}  Rxe5 {[%clk 0:00:09]} 41. Rd1 {[%clk 0:00:04]}  Re2 {[%clk 0:00:09]} 0-1


[Site "https://www.chess.com"]

[Event "Titled Tuesday Blitz December 27 Early 2022"]
[White "Golizadeh, Asghar"]
[Black "Bortnyk, Olexandr"]
[WhiteFideId "12505269"]
[BlackFideId "14120828"]
[WhiteElo "2455"]
[BlackElo "2605"]
[Result "0-1"]
[Round "03"]
[TimeControl "180+2"]
[Date "2022.12.27"]
[WhiteClock "0:00:01"]
[BlackClock "0:00:28"]

1. e4 {[%clk 0:03:00]}  Nf6 {[%clk 0:02:58]} 2. Nc3 {[%clk 0:02:56]}  d5 {[%clk 0:02:56]} 3. exd5 {[%clk 0:02:56]}  Nxd5 {[%clk 0:02:57]} 4. Bc4 {[%clk 0:02:56]}  Nb6 {[%clk 0:02:57]} 5. Bb3 {[%clk 0:02:56]}  c5 {[%clk 0:02:58]} 6. d3 {[%clk 0:02:57]}  Nc6 {[%clk 0:02:55]} 7. Nf3 {[%clk 0:02:57]}  Bf5 {[%clk 0:02:56]} 8. O-O {[%clk 0:02:56]}  e6 {[%clk 0:02:56]} 9. a4 {[%clk 0:02:52]}  Na5 {[%clk 0:02:54]} 10. Ba2 {[%clk 0:02:52]}  Be7 {[%clk 0:02:46]} 11. Be3 {[%clk 0:02:50]}  O-O {[%clk 0:02:45]} 12. Ne4 {[%clk 0:02:46]}  Qc7 {[%clk 0:02:41]} 13. Ng3 {[%clk 0:02:42]}  Bg6 {[%clk 0:02:41]} 14. Bd2 {[%clk 0:02:21]}  Nc6 {[%clk 0:02:33]} 15. a5 {[%clk 0:02:18]}  Nd5 {[%clk 0:02:32]} 16. a6 {[%clk 0:02:15]}  b6 {[%clk 0:02:24]} 17. Bxd5 {[%clk 0:02:04]}  exd5 {[%clk 0:02:25]} 18. Re1 {[%clk 0:02:03]}  Rfe8 {[%clk 0:02:07]} 19. h4 {[%clk 0:01:59]}  h6 {[%clk 0:02:06]} 20. h5 {[%clk 0:01:50]}  Bh7 {[%clk 0:02:06]} 21. Nh2 {[%clk 0:01:46]}  Bf6 {[%clk 0:01:52]} 22. Ng4 {[%clk 0:01:05]}  Bxb2 {[%clk 0:01:48]} 23. Rb1 {[%clk 0:01:02]}  Rxe1+ {[%clk 0:01:48]} 24. Qxe1 {[%clk 0:00:58]}  Be5 {[%clk 0:01:49]} 25. Nxe5 {[%clk 0:00:36]}  Qxe5 {[%clk 0:01:50]} 26. Qxe5 {[%clk 0:00:36]}  Nxe5 {[%clk 0:01:51]} 27. Re1 {[%clk 0:00:36]}  Nc6 {[%clk 0:01:50]} 28. Ne2 {[%clk 0:00:31]}  Bf5 {[%clk 0:01:39]} 29. Nc3 {[%clk 0:00:30]}  Rd8 {[%clk 0:01:10]} 30. Nb5 {[%clk 0:00:22]}  Bc8 {[%clk 0:01:11]} 31. Ra1 {[%clk 0:00:17]}  f6 {[%clk 0:01:08]} 32. Bf4 {[%clk 0:00:17]}  d4 {[%clk 0:01:02]} 33. Bc7 {[%clk 0:00:16]}  Re8 {[%clk 0:00:43]} 34. Nd6 {[%clk 0:00:16]}  Rf8 {[%clk 0:00:39]} 35. Bxb6 {[%clk 0:00:10]}  axb6 {[%clk 0:00:39]} 36. a7 {[%clk 0:00:10]}  Nxa7 {[%clk 0:00:39]} 37. Rxa7 {[%clk 0:00:10]}  Bg4 {[%clk 0:00:40]} 38. f3 {[%clk 0:00:09]}  Bxh5 {[%clk 0:00:41]} 39. Nf5 {[%clk 0:00:10]}  Rf7 {[%clk 0:00:33]} 40. Ra8+ {[%clk 0:00:10]}  Kh7 {[%clk 0:00:33]} 41. Rb8 {[%clk 0:00:10]}  Bg6 {[%clk 0:00:31]} 42. Nd6 {[%clk 0:00:10]}  Re7 {[%clk 0:00:29]} 43. Kf2 {[%clk 0:00:08]}  Ra7 {[%clk 0:00:30]} 44. Ke2 {[%clk 0:00:05]}  Ra2 {[%clk 0:00:25]} 45. Kd2 {[%clk 0:00:05]}  Ra1 {[%clk 0:00:26]} 46. Rxb6 {[%clk 0:00:04]}  Rg1 {[%clk 0:00:27]} 47. g4 {[%clk 0:00:04]}  Rg2+ {[%clk 0:00:26]} 48. Kd1 {[%clk 0:00:03]}  Rf2 {[%clk 0:00:27]} 49. Rc6 {[%clk 0:00:02]}  Rxf3 {[%clk 0:00:27]} 50. Rxc5 {[%clk 0:00:03]}  Rg3 {[%clk 0:00:28]} 51. Nf5 {[%clk 0:00:01]}  Rxg4 {[%clk 0:00:27]} 52. Ne7 {[%clk 0:00:01]}  h5 {[%clk 0:00:28]} 0-1


[Site "https://www.chess.com"]

[Event "Titled Tuesday Blitz December 27 Early 2022"]
[White "Goltsev, Dmitry"]
[Black "Goncalves, Davi Sulzbacher"]
[WhiteFideId "24176710"]
[BlackFideId "2154510"]
[WhiteElo "2269"]
[BlackElo "2282"]
[Result "1-0"]
[Round "03"]
[TimeControl "180+2"]
[Date "2022.12.27"]
[WhiteClock "0:01:57"]
[BlackClock "0:00:07"]

1. e4 {[%clk 0:02:59]}  c5 {[%clk 0:02:59]} 2. Nf3 {[%clk 0:03:00]}  Nc6 {[%clk 0:02:59]} 3. d4 {[%clk 0:03:00]}  cxd4 {[%clk 0:03:00]} 4. Nxd4 {[%clk 0:03:01]}  Nf6 {[%clk 0:03:00]} 5. Nc3 {[%clk 0:03:02]}  e5 {[%clk 0:03:01]} 6. Nf5 {[%clk 0:03:02]}  d5 {[%clk 0:03:00]} 7. exd5 {[%clk 0:03:03]}  Bxf5 {[%clk 0:03:00]} 8. dxc6 {[%clk 0:03:04]}  bxc6 {[%clk 0:02:56]} 9. Bd3 {[%clk 0:03:04]}  Bxd3 {[%clk 0:02:37]} 10. Qxd3 {[%clk 0:03:05]}  Qxd3 {[%clk 0:02:37]} 11. cxd3 {[%clk 0:03:05]}  Bb4 {[%clk 0:02:32]} 12. Ke2 {[%clk 0:03:05]}  Bxc3 {[%clk 0:02:03]} 13. bxc3 {[%clk 0:03:06]}  Kd7 {[%clk 0:01:59]} 14. c4 {[%clk 0:03:04]}  Rhb8 {[%clk 0:01:57]} 15. Ba3 {[%clk 0:03:03]}  Rb7 {[%clk 0:01:50]} 16. Rab1 {[%clk 0:03:03]}  Rab8 {[%clk 0:01:50]} 17. Rxb7+ {[%clk 0:03:04]}  Rxb7 {[%clk 0:01:51]} 18. Kd2 {[%clk 0:03:03]}  Ke6 {[%clk 0:01:42]} 19. Kc2 {[%clk 0:02:59]}  Ng4 {[%clk 0:01:39]} 20. Bc5 {[%clk 0:02:54]}  f5 {[%clk 0:01:31]} 21. Re1 {[%clk 0:02:43]}  g5 {[%clk 0:00:55]} 22. f3 {[%clk 0:02:34]}  Nf6 {[%clk 0:00:54]} 23. g3 {[%clk 0:02:31]}  h5 {[%clk 0:00:49]} 24. Bd4 {[%clk 0:02:28]}  Nd7 {[%clk 0:00:46]} 25. f4 {[%clk 0:02:29]}  gxf4 {[%clk 0:00:39]} 26. gxf4 {[%clk 0:02:30]}  e4 {[%clk 0:00:40]} 27. Rg1 {[%clk 0:02:10]}  c5 {[%clk 0:00:29]} 28. Rg6+ {[%clk 0:02:08]}  Kf7 {[%clk 0:00:27]} 29. Rg7+ {[%clk 0:02:08]}  Kf8 {[%clk 0:00:27]} 30. Bc3 {[%clk 0:02:03]}  e3 {[%clk 0:00:26]} 31. Rg5 {[%clk 0:02:01]}  Ke7 {[%clk 0:00:10]} 32. Rxf5 {[%clk 0:02:00]}  h4 {[%clk 0:00:07]} 33. Rh5 {[%clk 0:01:59]}  Nb6 {[%clk 0:00:07]} 34. Rh7+ {[%clk 0:01:57]} 1-0


[Site "https://www.chess.com"]

[Event "Titled Tuesday Blitz December 27 Early 2022"]
[White "Gorodetzky, David"]
[Black "Klose, Eli"]
[WhiteFideId "2813416"]
[BlackFideId "16242955"]
[WhiteElo "2485"]
[BlackElo "1519"]
[Result "1-0"]
[Round "03"]
[TimeControl "180+2"]
[Date "2022.12.27"]
[WhiteClock "0:00:08"]
[BlackClock "0:00:13"]

1. d4 {[%clk 0:03:00]}  Nf6 {[%clk 0:02:59]} 2. Nc3 {[%clk 0:03:01]}  d5 {[%clk 0:02:47]} 3. Bf4 {[%clk 0:03:00]}  e6 {[%clk 0:02:46]} 4. Nb5 {[%clk 0:02:56]}  Na6 {[%clk 0:02:45]} 5. e3 {[%clk 0:02:55]}  c6 {[%clk 0:02:37]} 6. Nc3 {[%clk 0:02:55]}  Nc7 {[%clk 0:02:38]} 7. Bd3 {[%clk 0:02:55]}  Bd6 {[%clk 0:02:38]} 8. Nf3 {[%clk 0:02:51]}  O-O {[%clk 0:02:36]} 9. O-O {[%clk 0:02:51]}  Re8 {[%clk 0:02:37]} 10. Bxd6 {[%clk 0:02:40]}  Qxd6 {[%clk 0:02:36]} 11. e4 {[%clk 0:02:41]}  dxe4 {[%clk 0:02:33]} 12. Nxe4 {[%clk 0:02:42]}  Nxe4 {[%clk 0:02:33]} 13. Bxe4 {[%clk 0:02:43]}  Nd5 {[%clk 0:02:31]} 14. c3 {[%clk 0:02:40]}  Nf6 {[%clk 0:02:31]} 15. Bc2 {[%clk 0:02:27]}  b6 {[%clk 0:02:31]} 16. Ne5 {[%clk 0:02:17]}  Bb7 {[%clk 0:02:22]} 17. Qf3 {[%clk 0:02:18]}  Rab8 {[%clk 0:02:20]} 18. Rad1 {[%clk 0:02:15]}  c5 {[%clk 0:02:16]} 19. Qg3 {[%clk 0:02:13]}  Be4 {[%clk 0:01:59]} 20. Bb3 {[%clk 0:01:30]}  Qc7 {[%clk 0:01:37]} 21. dxc5 {[%clk 0:01:21]}  bxc5 {[%clk 0:01:37]} 22. Rfe1 {[%clk 0:01:10]}  Bd5 {[%clk 0:01:35]} 23. c4 {[%clk 0:00:55]}  Be4 {[%clk 0:01:24]} 24. f3 {[%clk 0:00:52]}  Bg6 {[%clk 0:01:20]} 25. Nd7 {[%clk 0:00:47]}  Qxg3 {[%clk 0:01:17]} 26. hxg3 {[%clk 0:00:47]}  Nxd7 {[%clk 0:00:51]} 27. Rxd7 {[%clk 0:00:48]}  a5 {[%clk 0:00:49]} 28. Re5 {[%clk 0:00:46]}  a4 {[%clk 0:00:37]} 29. Bxa4 {[%clk 0:00:46]}  Rxb2 {[%clk 0:00:38]} 30. Rxc5 {[%clk 0:00:43]}  Rxa2 {[%clk 0:00:37]} 31. Bc6 {[%clk 0:00:21]}  h5 {[%clk 0:00:32]} 32. Ra7 {[%clk 0:00:20]}  Rxa7 {[%clk 0:00:28]} 33. Bxe8 {[%clk 0:00:21]}  Ra1+ {[%clk 0:00:27]} 34. Kh2 {[%clk 0:00:16]}  Rc1 {[%clk 0:00:28]} 35. Rc8 {[%clk 0:00:13]}  Kf8 {[%clk 0:00:22]} 36. c5 {[%clk 0:00:12]}  Ke7 {[%clk 0:00:20]} 37. Bb5 {[%clk 0:00:09]}  Rb1 {[%clk 0:00:14]} 38. Rb8 {[%clk 0:00:09]}  Bd3 {[%clk 0:00:12]} 39. c6 {[%clk 0:00:10]}  Rxb5 {[%clk 0:00:08]} 40. c7 {[%clk 0:00:09]}  Rc5 {[%clk 0:00:09]} 41. c8=Q {[%clk 0:00:08]}  Rxc8 {[%clk 0:00:09]} 42. Rxc8 {[%clk 0:00:09]}  Kf6 {[%clk 0:00:09]} 43. Rc5 {[%clk 0:00:09]}  g6 {[%clk 0:00:09]} 44. Kg1 {[%clk 0:00:09]}  Ba6 {[%clk 0:00:08]} 45. Kf2 {[%clk 0:00:09]}  Bb7 {[%clk 0:00:07]} 46. Rc7 {[%clk 0:00:10]}  Bd5 {[%clk 0:00:08]} 47. Ke3 {[%clk 0:00:10]}  Kg7 {[%clk 0:00:08]} 48. Kf2 {[%clk 0:00:10]}  Kf6 {[%clk 0:00:09]} 49. Ra7 {[%clk 0:00:09]}  Bc4 {[%clk 0:00:09]} 50. Ra4 {[%clk 0:00:10]}  Bd5 {[%clk 0:00:10]} 51. g4 {[%clk 0:00:10]}  hxg4 {[%clk 0:00:05]} 52. Rf4+ {[%clk 0:00:10]}  Kg7 {[%clk 0:00:04]} 53. Rxg4 {[%clk 0:00:11]}  Kf6 {[%clk 0:00:04]} 54. Rb4 {[%clk 0:00:12]}  g5 {[%clk 0:00:04]} 55. Ke3 {[%clk 0:00:12]}  Kg6 {[%clk 0:00:05]} 56. Rb8 {[%clk 0:00:11]}  Kf6 {[%clk 0:00:06]} 57. Rg8 {[%clk 0:00:11]}  Kf5 {[%clk 0:00:06]} 58. g3 {[%clk 0:00:11]}  f6 {[%clk 0:00:06]} 59. Rd8 {[%clk 0:00:07]}  Ke5 {[%clk 0:00:07]} 60. Rb8 {[%clk 0:00:06]}  Kf5 {[%clk 0:00:07]} 61. Rb4 {[%clk 0:00:06]}  Ke5 {[%clk 0:00:08]} 62. Kf2 {[%clk 0:00:06]}  Kf5 {[%clk 0:00:08]} 63. Kg2 {[%clk 0:00:07]}  Ke5 {[%clk 0:00:09]} 64. Ra4 {[%clk 0:00:06]}  g4 {[%clk 0:00:09]} 65. Rxg4 {[%clk 0:00:05]}  f5 {[%clk 0:00:09]} 66. Rf4 {[%clk 0:00:06]}  Kf6 {[%clk 0:00:09]} 67. Kf2 {[%clk 0:00:06]}  Kg5 {[%clk 0:00:08]} 68. Rb4 {[%clk 0:00:07]}  Kf6 {[%clk 0:00:09]} 69. f4 {[%clk 0:00:06]}  Be4 {[%clk 0:00:08]} 70. Ke3 {[%clk 0:00:07]}  Bd5 {[%clk 0:00:09]} 71. Kd4 {[%clk 0:00:07]}  Bf3 {[%clk 0:00:10]} 72. Kc5 {[%clk 0:00:07]}  Bd1 {[%clk 0:00:10]} 73. Kd6 {[%clk 0:00:08]}  Be2 {[%clk 0:00:10]} 74. Rb8 {[%clk 0:00:08]}  Bc4 {[%clk 0:00:10]} 75. Rc8 {[%clk 0:00:08]}  Bd5 {[%clk 0:00:10]} 76. Rf8+ {[%clk 0:00:09]}  Kg7 {[%clk 0:00:09]} 77. Ke7 {[%clk 0:00:09]}  Kg6 {[%clk 0:00:10]} 78. Rf6+ {[%clk 0:00:07]}  Kh5 {[%clk 0:00:10]} 79. Rxe6 {[%clk 0:00:07]}  Kg4 {[%clk 0:00:11]} 80. Rg6+ {[%clk 0:00:06]}  Kf3 {[%clk 0:00:11]} 81. Kf6 {[%clk 0:00:06]}  Be4 {[%clk 0:00:12]} 82. Ke5 {[%clk 0:00:06]}  Ke3 {[%clk 0:00:12]} 83. g4 {[%clk 0:00:05]}  fxg4 {[%clk 0:00:12]} 84. Rxg4 {[%clk 0:00:06]}  Bf3 {[%clk 0:00:12]} 85. Rg3 {[%clk 0:00:07]}  Kf2 {[%clk 0:00:12]} 86. Rxf3+ {[%clk 0:00:07]}  Kxf3 {[%clk 0:00:13]} 87. f5 {[%clk 0:00:08]} 1-0


[Site "https://www.chess.com"]

[Event "Titled Tuesday Blitz December 27 Early 2022"]
[White "Graham, Nathaniel"]
[Black "Fernandez Siles, Luis"]
[WhiteFideId "2007983"]
[BlackFideId "2209420"]
[WhiteElo "2262"]
[BlackElo "2218"]
[Result "1-0"]
[Round "03"]
[TimeControl "180+2"]
[Date "2022.12.27"]
[WhiteClock "0:00:05"]
[BlackClock "0:00:02"]

1. e4 {[%clk 0:03:00]}  c5 {[%clk 0:02:59]} 2. Nf3 {[%clk 0:03:00]}  Nc6 {[%clk 0:02:58]} 3. d4 {[%clk 0:03:01]}  cxd4 {[%clk 0:02:59]} 4. Nxd4 {[%clk 0:03:02]}  Nf6 {[%clk 0:02:59]} 5. Nc3 {[%clk 0:03:02]}  e5 {[%clk 0:02:59]} 6. Ndb5 {[%clk 0:03:02]}  d6 {[%clk 0:03:00]} 7. Bg5 {[%clk 0:03:03]}  a6 {[%clk 0:03:01]} 8. Na3 {[%clk 0:03:03]}  b5 {[%clk 0:03:02]} 9. Nd5 {[%clk 0:03:04]}  Be7 {[%clk 0:03:02]} 10. Bxf6 {[%clk 0:03:04]}  Bxf6 {[%clk 0:03:03]} 11. c3 {[%clk 0:03:04]}  O-O {[%clk 0:03:03]} 12. Nc2 {[%clk 0:03:05]}  Rb8 {[%clk 0:03:03]} 13. Ncb4 {[%clk 0:03:04]}  Bb7 {[%clk 0:02:44]} 14. Nxc6 {[%clk 0:02:58]}  Bxc6 {[%clk 0:02:43]} 15. Be2 {[%clk 0:02:56]}  Bg5 {[%clk 0:02:37]} 16. O-O {[%clk 0:02:56]}  a5 {[%clk 0:02:35]} 17. a3 {[%clk 0:02:52]}  Qd7 {[%clk 0:02:21]} 18. Qd3 {[%clk 0:02:50]}  Qb7 {[%clk 0:02:20]} 19. Rad1 {[%clk 0:02:47]}  b4 {[%clk 0:02:16]} 20. cxb4 {[%clk 0:02:23]}  axb4 {[%clk 0:02:15]} 21. axb4 {[%clk 0:02:16]}  Bxd5 {[%clk 0:02:09]} 22. Qxd5 {[%clk 0:02:14]}  Qxb4 {[%clk 0:02:08]} 23. Rb1 {[%clk 0:01:53]}  Bd8 {[%clk 0:01:38]} 24. Bc4 {[%clk 0:01:43]}  Bb6 {[%clk 0:01:36]} 25. b3 {[%clk 0:01:42]}  Bc5 {[%clk 0:01:05]} 26. Rbd1 {[%clk 0:01:21]}  g6 {[%clk 0:01:04]} 27. Rd3 {[%clk 0:01:20]}  Kg7 {[%clk 0:01:02]} 28. Rf3 {[%clk 0:01:19]}  f6 {[%clk 0:00:50]} 29. Qe6 {[%clk 0:01:13]}  Qb7 {[%clk 0:00:44]} 30. g3 {[%clk 0:01:02]}  Rbe8 {[%clk 0:00:42]} 31. Qd5 {[%clk 0:01:00]}  Qxd5 {[%clk 0:00:38]} 32. Bxd5 {[%clk 0:01:00]}  Bd4 {[%clk 0:00:23]} 33. Rc1 {[%clk 0:00:59]}  Rc8 {[%clk 0:00:23]} 34. Bc4 {[%clk 0:00:40]}  Rc7 {[%clk 0:00:19]} 35. Rd3 {[%clk 0:00:37]}  Ra8 {[%clk 0:00:18]} 36. Rc2 {[%clk 0:00:34]}  Ra1+ {[%clk 0:00:16]} 37. Kg2 {[%clk 0:00:34]}  f5 {[%clk 0:00:13]} 38. f3 {[%clk 0:00:24]}  Rc8 {[%clk 0:00:08]} 39. Rdd2 {[%clk 0:00:24]}  fxe4 {[%clk 0:00:07]} 40. fxe4 {[%clk 0:00:23]}  Rf8 {[%clk 0:00:07]} 41. Ra2 {[%clk 0:00:20]}  Rg1+ {[%clk 0:00:07]} 42. Kh3 {[%clk 0:00:19]}  h5 {[%clk 0:00:07]} 43. Bd5 {[%clk 0:00:13]}  g5 {[%clk 0:00:07]} 44. Be6 {[%clk 0:00:11]}  h4 {[%clk 0:00:01]} 45. Bf5 {[%clk 0:00:08]}  hxg3 {[%clk 0:00:01]} 46. hxg3 {[%clk 0:00:07]}  Rh8+ {[%clk 0:00:02]} 47. Kg4 {[%clk 0:00:08]}  Kf6 {[%clk 0:00:01]} 48. Ra6 {[%clk 0:00:06]}  Rf1 {[%clk 0:00:01]} 49. Rxd6+ {[%clk 0:00:06]}  Ke7 {[%clk 0:00:02]} 50. Re6+ {[%clk 0:00:06]}  Kf7 {[%clk 0:00:02]} 51. Rc6 {[%clk 0:00:05]} 1-0


[Site "https://www.chess.com"]

[Event "Titled Tuesday Blitz December 27 Early 2022"]
[White "Gurevich, Dmitry"]
[Black "Svane, Frederik"]
[WhiteFideId "2000407"]
[BlackFideId "12923044"]
[WhiteElo "2393"]
[BlackElo "2600"]
[Result "1-0"]
[Round "03"]
[TimeControl "180+2"]
[Date "2022.12.27"]
[WhiteClock "0:00:05"]
[BlackClock "0:00:03"]

1. d4 {[%clk 0:02:53]}  Nf6 {[%clk 0:02:58]} 2. c4 {[%clk 0:02:53]}  e6 {[%clk 0:02:59]} 3. Nc3 {[%clk 0:02:52]}  Bb4 {[%clk 0:02:59]} 4. a3 {[%clk 0:02:52]}  Bxc3+ {[%clk 0:02:59]} 5. bxc3 {[%clk 0:02:53]}  Nc6 {[%clk 0:02:59]} 6. e3 {[%clk 0:02:53]}  b6 {[%clk 0:02:54]} 7. Bd3 {[%clk 0:02:52]}  Ba6 {[%clk 0:02:50]} 8. e4 {[%clk 0:02:52]}  Na5 {[%clk 0:02:50]} 9. e5 {[%clk 0:02:47]}  Ng8 {[%clk 0:02:48]} 10. Qg4 {[%clk 0:02:40]}  Kf8 {[%clk 0:02:48]} 11. Qe2 {[%clk 0:02:39]}  d6 {[%clk 0:02:39]} 12. Nf3 {[%clk 0:02:37]}  Qd7 {[%clk 0:02:32]} 13. O-O {[%clk 0:02:12]}  Rc8 {[%clk 0:02:06]} 14. Bf4 {[%clk 0:02:02]}  Ne7 {[%clk 0:02:01]} 15. Ng5 {[%clk 0:01:55]}  h6 {[%clk 0:01:59]} 16. exd6 {[%clk 0:01:46]}  cxd6 {[%clk 0:01:55]} 17. Ne4 {[%clk 0:01:42]}  Nb7 {[%clk 0:01:48]} 18. a4 {[%clk 0:01:29]}  Qc6 {[%clk 0:01:40]} 19. a5 {[%clk 0:01:22]}  bxa5 {[%clk 0:01:25]} 20. c5 {[%clk 0:01:09]}  Bxd3 {[%clk 0:01:24]} 21. Qxd3 {[%clk 0:01:09]}  dxc5 {[%clk 0:01:23]} 22. dxc5 {[%clk 0:01:04]}  Kg8 {[%clk 0:01:09]} 23. Rfd1 {[%clk 0:00:53]}  Nd5 {[%clk 0:01:08]} 24. Bd6 {[%clk 0:00:49]}  f5 {[%clk 0:01:03]} 25. Ng3 {[%clk 0:00:36]}  Nxc5 {[%clk 0:01:02]} 26. Bxc5 {[%clk 0:00:35]}  Qxc5 {[%clk 0:01:03]} 27. Qa6 {[%clk 0:00:30]}  Qb6 {[%clk 0:00:42]} 28. Qxc8+ {[%clk 0:00:28]}  Kh7 {[%clk 0:00:41]} 29. Qc4 {[%clk 0:00:27]}  Nf6 {[%clk 0:00:20]} 30. Qd4 {[%clk 0:00:26]}  Qc6 {[%clk 0:00:19]} 31. Re1 {[%clk 0:00:25]}  Rb8 {[%clk 0:00:17]} 32. Qe5 {[%clk 0:00:24]}  Rb6 {[%clk 0:00:17]} 33. h3 {[%clk 0:00:23]}  a4 {[%clk 0:00:16]} 34. Qa5 {[%clk 0:00:21]}  Ra6 {[%clk 0:00:15]} 35. Qb4 {[%clk 0:00:20]}  Nd5 {[%clk 0:00:16]} 36. Qd4 {[%clk 0:00:19]}  a3 {[%clk 0:00:13]} 37. c4 {[%clk 0:00:18]}  Nb4 {[%clk 0:00:13]} 38. Qc3 {[%clk 0:00:14]}  Ra4 {[%clk 0:00:08]} 39. c5 {[%clk 0:00:13]}  a5 {[%clk 0:00:07]} 40. Qc4 {[%clk 0:00:13]}  Nd5 {[%clk 0:00:06]} 41. Qc2 {[%clk 0:00:13]}  g6 {[%clk 0:00:04]} 42. h4 {[%clk 0:00:11]}  Rxh4 {[%clk 0:00:03]} 43. Rxa3 {[%clk 0:00:10]}  f4 {[%clk 0:00:03]} 44. Ne4 {[%clk 0:00:09]}  f3 {[%clk 0:00:04]} 45. Rxf3 {[%clk 0:00:07]}  Kg7 {[%clk 0:00:02]} 46. Qb2+ {[%clk 0:00:07]}  Kg8 {[%clk 0:00:02]} 47. Nf6+ {[%clk 0:00:06]}  Nxf6 {[%clk 0:00:02]} 48. Qxf6 {[%clk 0:00:06]}  Qe8 {[%clk 0:00:02]} 49. Rxe6 {[%clk 0:00:05]}  Re4 {[%clk 0:00:02]} 50. Rxe8+ {[%clk 0:00:05]}  Kh7 {[%clk 0:00:03]} 51. Qf7# {[%clk 0:00:05]} 1-0


[Site "https://www.chess.com"]